fUSD/lending_fUSD_20260620
["ID","MTS","AMOUNT","RATE_DAILY","PERIOD"]
[425790062,1781891457000,-523.29337779,0.00036164,30]
[425790063,1781891457000,-549.71,0.00036164,30]
[425790067,1781891457000,-500.0,0.00036164,30]
[425790070,1781891457000,-500.0,0.00036164,30]
[425790068,1781891457000,-515.15765853,0.00036164,30]
[425790069,1781891457000,-516.31236662,0.00036164,30]
[425790019,1781891457000,-500.0,0.00036164,30]
[425790050,1781891457000,-500.0,0.00036164,30]
[425790048,1781891457000,-500.0,0.00036164,30]
[425790058,1781891457000,-500.01417712,0.00036164,30]
[425790047,1781891457000,-500.0,0.00036164,30]
[425790020,1781891457000,-504.55126453,0.00036164,30]
[425790044,1781891457000,-500.0,0.00036164,30]
[425790017,1781891457000,-500.0,0.00036164,30]
[425790022,1781891457000,-599.58,0.00036164,30]
[425790028,1781891457000,-505.55215973,0.00036164,30]
[425790031,1781891457000,-534.70865705,0.00036164,30]
[425790029,1781891457000,-500.0,0.00036164,30]
[425790036,1781891457000,-500.0,0.00036164,30]
[425790033,1781891457000,-743.02,0.00036164,30]
[425790038,1781891457000,-500.0,0.00036164,30]
[425790035,1781891457000,-498.93649729,0.00036164,30]
[425790037,1781891457000,-554.0345899,0.00036164,30]
[425790032,1781891457000,-500.0,0.00036164,30]
[425790034,1781891457000,-1221.74,0.00036164,30]
[425790040,1781891457000,-530.60592477,0.00036164,30]
[425790039,1781891457000,-500.0,0.00036164,30]
[425790041,1781891457000,-509.82580138,0.00036164,30]
[425790042,1781891457000,-1380.29,0.00036164,30]
[425790043,1781891457000,-500.0,0.00036164,30]
[425790030,1781891457000,-506.22162912,0.00036164,30]
[425790045,1781891457000,-508.07417781,0.00036164,30]
[425790046,1781891457000,-1041.66,0.00036164,30]
[425790101,1781891458000,-500.0,0.00036164,30]
[425790109,1781891458000,-679.57,0.00036164,30]
[425790112,1781891458000,-500.0,0.00036164,30]
[425790108,1781891458000,-500.0,0.00036164,30]
[425790103,1781891458000,-577.34404514,0.00036164,30]
[425790104,1781891458000,-500.0,0.00036164,30]
[425790107,1781891458000,-500.0,0.00036164,30]
[425790105,1781891458000,-500.0,0.00036164,30]
[425790102,1781891458000,-558.89,0.00036164,30]
[425790110,1781891458000,-186.52,0.00036164,30]
[425790106,1781891458000,-500.0,0.00036164,30]
[425790111,1781891458000,-500.0,0.00036164,30]
[425790123,1781891458000,-500.0,0.00036164,30]
[425790117,1781891458000,-500.0,0.00036164,30]
[425790121,1781891458000,-1376.44,0.00036164,30]
[425790115,1781891458000,-500.0,0.00036164,30]
[425790122,1781891458000,-568.73539509,0.00036164,30]
[425790116,1781891458000,-500.0,0.00036164,30]
[425790114,1781891458000,-500.0,0.00036164,30]
[425790113,1781891458000,-400.29814534,0.00036164,30]
[425790118,1781891458000,-500.0,0.00036164,30]
[425790120,1781891458000,-500.0,0.00036164,30]
[425790134,1781891458000,-1237.49,0.00036164,30]
[425790125,1781891458000,-500.0,0.00036164,30]
[425790099,1781891458000,-529.72393961,0.00036164,30]
[425790119,1781891458000,-500.0,0.00036164,30]
[425790100,1781891458000,-500.0,0.00036164,30]
[425790076,1781891458000,-632.8578876,0.00036164,8]
[425790098,1781891458000,-367.10588961,0.00036164,30]
[425790077,1781891458000,-501.62632806,0.00036164,30]
[425790072,1781891458000,-500.0,0.00036164,30]
[425790074,1781891458000,-1012.76,0.00036164,30]
[425790073,1781891458000,-500.0,0.00036164,30]
[425790071,1781891458000,-503.8531368,0.00036164,30]
[425790126,1781891458000,-500.0,0.00036164,30]
[425790075,1781891458000,-245.26,0.00036164,30]
[425790079,1781891458000,-500.0,0.00036164,30]
[425790089,1781891458000,-580.65400487,0.00036164,30]
[425790078,1781891458000,-500.0,0.00036164,30]
[425790090,1781891458000,-500.0,0.00036164,30]
[425790080,1781891458000,-500.0,0.00036164,30]
[425790097,1781891458000,-500.0,0.00036164,30]
[425790086,1781891458000,-517.74,0.00036164,30]
[425790084,1781891458000,-500.0,0.00036164,30]
[425790083,1781891458000,-614.28,0.00036164,30]
[425790082,1781891458000,-500.0,0.00036164,30]
[425790087,1781891458000,-500.0,0.00036164,30]
[425790088,1781891458000,-645.14469618,0.00036164,30]
[425790085,1781891458000,-500.0,0.00036164,30]
[425790091,1781891458000,-500.0,0.00036164,30]
[425790094,1781891458000,-504.59797621,0.00036164,30]
[425790092,1781891458000,-504.08263395,0.00036164,30]
[425790093,1781891458000,-500.0,0.00036164,30]
[425790095,1781891458000,-187.41075083,0.00036164,30]
[425790096,1781891458000,-500.0,0.00036164,30]
[425790081,1781891458000,-500.0,0.00036164,30]
[425790127,1781891458000,-500.0,0.00036164,30]
[425790124,1781891458000,-574.31939831,0.00036164,30]
[425790129,1781891458000,-500.0,0.00036164,30]
[425790171,1781891458000,-500.0,0.00036164,30]
[425790172,1781891458000,-500.0,0.00036164,30]
[425790160,1781891458000,-500.0,0.00036164,30]
[425790162,1781891458000,-500.0,0.00036164,30]
[425790168,1781891458000,-604.5155593,0.00036164,30]
[425790164,1781891458000,-500.0,0.00036164,2]
[425790169,1781891458000,-500.0,0.00036164,30]
[425790170,1781891458000,-500.0,0.00036164,30]
[425790166,1781891458000,-504.77577551,0.00036164,30]
[425790163,1781891458000,-742.55,0.00036164,30]
[425790165,1781891458000,-500.0,0.00036164,30]
[425790173,1781891458000,-500.0,0.00036164,30]
[425790161,1781891458000,-500.0,0.00036164,30]
[425790175,1781891458000,-500.0,0.00036164,30]
[425790176,1781891458000,-500.0,0.00036164,30]
[425790178,1781891458000,-644.7697001,0.00036164,30]
[425790180,1781891458000,-500.0,0.00036164,30]
[425790179,1781891458000,-500.0,0.00036164,30]
[425790182,1781891458000,-500.0,0.00036164,30]
[425790177,1781891458000,-617.34161925,0.00036164,30]
[425790184,1781891458000,-506.32483252,0.00036164,30]
[425790174,1781891458000,-500.0,0.00036164,30]
[425790183,1781891458000,-600.67,0.00036164,30]
[425790185,1781891458000,-500.0,0.00036164,30]
[425790186,1781891458000,-519.50293263,0.00036164,30]
[425790131,1781891458000,-1581.49,0.00036164,30]
[425790181,1781891458000,-500.0,0.00036164,30]
[425790159,1781891458000,-510.60536147,0.00036164,30]
[425790167,1781891458000,-500.0,0.00036164,30]
[425790148,1781891458000,-608.96,0.00036164,30]
[425790158,1781891458000,-500.0,0.00036164,30]
[425790132,1781891458000,-500.0,0.00036164,30]
[425790128,1781891458000,-507.56329828,0.00036164,30]
[425790133,1781891458000,-500.0,0.00036164,30]
[425790135,1781891458000,-530.80452471,0.00036164,30]
[425790139,1781891458000,-500.0,0.00036164,30]
[425790136,1781891458000,-500.0,0.00036164,30]
[425790138,1781891458000,-512.17305167,0.00036164,30]
[425790137,1781891458000,-612.00133252,0.00036164,30]
[425790140,1781891458000,-1476.34,0.00036164,30]
[425790141,1781891458000,-505.10318702,0.00036164,30]
[425790142,1781891458000,-500.0,0.00036164,30]
[425790144,1781891458000,-522.55265801,0.00036164,30]
[425790130,1781891458000,-1556.69,0.00036164,30]
[425790145,1781891458000,-500.0,0.00036164,30]
[425790143,1781891458000,-612.99,0.00036164,30]
[425790156,1781891458000,-500.0,0.00036164,30]
[425790154,1781891458000,-500.0,0.00036164,30]
[425790150,1781891458000,-637.89052844,0.00036164,30]
[425790157,1781891458000,-500.0,0.00036164,30]
[425790155,1781891458000,-500.0,0.00036164,30]
[425790153,1781891458000,-500.0,0.00036164,30]
[425790149,1781891458000,-1290.61,0.00036164,30]
[425790152,1781891458000,-500.0,0.00036164,30]
[425790147,1781891458000,-500.0,0.00036164,30]
[425790146,1781891458000,-507.21530463,0.00036164,30]
[425790151,1781891458000,-500.0,0.00036164,30]
[425790226,1781891459000,-500.0,0.00036164,30]
[425790231,1781891459000,-508.44358095,0.00036164,30]
[425790230,1781891459000,-500.0,0.00036164,30]
[425790209,1781891459000,-500.0,0.00036164,30]
[425790229,1781891459000,-500.0,0.00036164,30]
[425790227,1781891459000,-1174.57,0.00036164,30]
[425790222,1781891459000,-747.55,0.00036164,30]
[425790221,1781891459000,-500.0,0.00036164,30]
[425790219,1781891459000,-500.0,0.00036164,30]
[425790220,1781891459000,-500.0,0.00036164,14]
[425790228,1781891459000,-500.0,0.00036164,30]
[425790224,1781891459000,-500.0,0.00036164,30]
[425790234,1781891459000,-258.63713132,0.00036164,30]
[425790225,1781891459000,-550.18,0.00036164,30]
[425790233,1781891459000,-508.69467602,0.00036164,30]
[425790232,1781891459000,-500.0,0.00036164,30]
[425790236,1781891459000,-500.0,0.00036164,30]
[425790235,1781891459000,-531.49019958,0.00036164,30]
[425790241,1781891459000,-500.0,0.00036164,30]
[425790238,1781891459000,-852.54,0.00036164,30]
[425790242,1781891459000,-500.0,0.00036164,30]
[425790239,1781891459000,-500.0,0.00036164,30]
[425790237,1781891459000,-632.20256165,0.00036164,30]
[425790240,1781891459000,-500.0,0.00036164,30]
[425790218,1781891459000,-500.0,0.00036164,30]
[425790223,1781891459000,-500.0,0.00036164,30]
[425790213,1781891459000,-500.0,0.00036164,30]
[425790243,1781891459000,-510.52593479,0.00036164,30]
[425790210,1781891459000,-500.0,0.00036164,30]
[425790195,1781891459000,-500.0,0.00036164,30]
[425790187,1781891459000,-500.0,0.00036164,30]
[425790188,1781891459000,-513.98046614,0.00036164,30]
[425790193,1781891459000,-500.0,0.00036164,30]
[425790189,1781891459000,-500.0,0.00036164,30]
[425790190,1781891459000,-520.84088242,0.00036164,30]
[425790192,1781891459000,-513.0931868,0.00036164,30]
[425790191,1781891459000,-500.0,0.00036164,30]
[425790194,1781891459000,-500.0,0.00036164,30]
[425790198,1781891459000,-1623.56,0.00036164,30]
[425790196,1781891459000,-500.0,0.00036164,30]
[425790199,1781891459000,-500.0,0.00036164,30]
[425790217,1781891459000,-500.0,0.00036164,30]
[425790201,1781891459000,-500.0,0.00036164,30]
[425790202,1781891459000,-500.0,0.00036164,30]
[425790197,1781891459000,-506.84506115,0.00036164,30]
[425790204,1781891459000,-500.0,0.00036164,30]
[425790205,1781891459000,-668.69,0.00036164,30]
[425790206,1781891459000,-507.13003625,0.00036164,30]
[425790203,1781891459000,-512.88213012,0.00036164,30]
[425790207,1781891459000,-500.0,0.00036164,30]
[425790215,1781891459000,-500.0,0.00036164,120]
[425790214,1781891459000,-500.0,0.00036164,30]
[425790216,1781891459000,-769.93,0.00036164,30]
[425790208,1781891459000,-500.0,0.00036164,30]
[425790212,1781891459000,-881.84,0.00036164,30]
[425790200,1781891459000,-509.22043492,0.00036164,30]
[425790245,1781891459000,-500.0,0.00036164,30]
[425790211,1781891459000,-500.0,0.00036164,30]
[425790250,1781891459000,-501.82,0.00036164,30]
[425790274,1781891459000,-500.0,0.00036164,30]
[425790273,1781891459000,-500.0,0.00036164,30]
[425790276,1781891459000,-702.08,0.00036164,30]
[425790280,1781891459000,-500.0,0.00036164,30]
[425790279,1781891459000,-500.0,0.00036164,30]
[425790284,1781891459000,-500.0,0.00036164,30]
[425790283,1781891459000,-624.10213955,0.00036164,30]
[425790281,1781891459000,-510.19919224,0.00036164,30]
[425790285,1781891459000,-500.21003028,0.00036164,30]
[425790282,1781891459000,-500.0,0.00036164,30]
[425790288,1781891459000,-500.0,0.00036164,30]
[425790286,1781891459000,-500.0,0.00036164,30]
[425790270,1781891459000,-500.0,0.00036164,30]
[425790287,1781891459000,-500.0,0.00036164,30]
[425790290,1781891459000,-688.61,0.00036164,30]
[425790292,1781891459000,-500.0,0.00036164,30]
[425790294,1781891459000,-500.0,0.00036164,30]
[425790293,1781891459000,-500.0,0.00036164,30]
[425790295,1781891459000,-500.0,0.00036164,30]
[425790298,1781891459000,-483.39256152,0.00036164,30]
[425790296,1781891459000,-560.90827525,0.00036164,30]
[425790297,1781891459000,-500.0,0.00036164,30]
[425790299,1781891459000,-500.0,0.00036164,30]
[425790300,1781891459000,-500.0,0.00036164,30]
[425790302,1781891459000,-512.25842366,0.00036164,30]
[425790249,1781891459000,-500.0,0.00036164,30]
[425790291,1781891459000,-592.5310544,0.00036164,30]
[425790275,1781891459000,-1857.03,0.00036164,30]
[425790289,1781891459000,-500.0,0.00036164,30]
[425790271,1781891459000,-1015.5,0.00036164,30]
[425790272,1781891459000,-500.0,0.00036164,30]
[425790246,1781891459000,-582.43657311,0.00036164,30]
[425790244,1781891459000,-500.0,0.00036164,30]
[425790251,1781891459000,-500.0,0.00036164,30]
[425790247,1781891459000,-500.0,0.00036164,30]
[425790253,1781891459000,-500.0,0.00036164,30]
[425790248,1781891459000,-536.85783501,0.00036164,30]
[425790254,1781891459000,-517.44975864,0.00036164,30]
[425790259,1781891459000,-556.92997177,0.00036164,30]
[425790258,1781891459000,-500.0,0.00036164,30]
[425790255,1781891459000,-506.16656104,0.00036164,30]
[425790256,1781891459000,-512.78930471,0.00036164,30]
[425790257,1781891459000,-500.0,0.00036164,30]
[425790252,1781891459000,-500.0,0.00036164,30]
[425790301,1781891459000,-500.0,0.00036164,30]
[425790278,1781891459000,-500.0,0.00036164,30]
[425790266,1781891459000,-500.0,0.00036164,30]
[425790277,1781891459000,-515.96123997,0.00036164,30]
[425790268,1781891459000,-500.0,0.00036164,30]
[425790269,1781891459000,-500.0,0.00036164,30]
[425790261,1781891459000,-500.0,0.00036164,30]
[425790262,1781891459000,-529.55852787,0.00036164,30]
[425790265,1781891459000,-504.22204997,0.00036164,30]
[425790264,1781891459000,-500.0,0.00036164,30]
[425790267,1781891459000,-1281.25,0.00036164,30]
[425790263,1781891459000,-500.0,0.00036164,30]
[425790260,1781891459000,-522.79790991,0.00036164,30]
[425790340,1781891460000,-676.16,0.00036164,30]
[425790342,1781891460000,-695.06,0.00036164,30]
[425790341,1781891460000,-500.0,0.00036164,30]
[425790343,1781891460000,-500.0,0.00036164,30]
[425790347,1781891460000,-506.34287389,0.00036164,30]
[425790336,1781891460000,-500.0,0.00036164,30]
[425790335,1781891460000,-500.0,0.00036164,30]
[425790346,1781891460000,-500.0,0.00036164,30]
[425790339,1781891460000,-497.10266168,0.00036164,30]
[425790337,1781891460000,-980.1,0.00036164,30]
[425790344,1781891460000,-504.74,0.00036164,30]
[425790338,1781891460000,-500.0,0.00036164,30]
[425790345,1781891460000,-571.67885819,0.00036164,30]
[425790361,1781891460000,-500.0,0.00036164,30]
[425790352,1781891460000,-570.65863284,0.00036164,30]
[425790359,1781891460000,-510.43709022,0.00036164,30]
[425790356,1781891460000,-500.0,0.00036164,30]
[425790353,1781891460000,-500.0,0.00036164,30]
[425790355,1781891460000,-502.81916421,0.00036164,30]
[425790350,1781891460000,-598.82,0.00036164,30]
[425790348,1781891460000,-500.0,0.00036164,30]
[425790360,1781891460000,-2321.03,0.00036164,30]
[425790351,1781891460000,-500.0,0.00036164,30]
[425790358,1781891460000,-500.0,0.00036164,30]
[425790354,1781891460000,-500.0,0.00036164,30]
[425790357,1781891460000,-506.13,0.00036164,30]
[425790333,1781891460000,-574.08,0.00036164,30]
[425790349,1781891460000,-500.0,0.00036164,30]
[425790332,1781891460000,-500.0,0.00036164,30]
[425790305,1781891460000,-516.25728051,0.00036164,30]
[425790330,1781891460000,-559.21701471,0.00036164,30]
[425790306,1781891460000,-500.0,0.00036164,30]
[425790364,1781891460000,-485.0,0.00036164,30]
[425790304,1781891460000,-5618.07,0.00036164,30]
[425790312,1781891460000,-505.21873465,0.00036164,30]
[425790303,1781891460000,-506.33059826,0.00036164,30]
[425790307,1781891460000,-515.47454744,0.00036164,30]
[425790310,1781891460000,-500.0,0.00036164,30]
[425790311,1781891460000,-500.0,0.00036164,30]
[425790309,1781891460000,-500.0,0.00036164,30]
[425790308,1781891460000,-901.53,0.00036164,30]
[425790314,1781891460000,-500.0,0.00036164,30]
[425790313,1781891460000,-607.6,0.00036164,30]
[425790315,1781891460000,-500.0,0.00036164,30]
[425790329,1781891460000,-529.52103167,0.00036164,30]
[425790317,1781891460000,-930.71,0.00036164,30]
[425790318,1781891460000,-500.0,0.00036164,30]
[425790319,1781891460000,-802.72,0.00036164,30]
[425790320,1781891460000,-500.0,0.00036164,30]
[425790322,1781891460000,-500.0,0.00036164,30]
[425790321,1781891460000,-500.0,0.00036164,30]
[425790323,1781891460000,-629.18,0.00036164,30]
[425790325,1781891460000,-500.0,0.00036164,30]
[425790324,1781891460000,-500.0,0.00036164,30]
[425790327,1781891460000,-500.0,0.00036164,30]
[425790326,1781891460000,-500.0,0.00036164,30]
[425790328,1781891460000,-500.0,0.00036164,30]
[425790334,1781891460000,-500.0,0.00036164,30]
[425790331,1781891460000,-500.0,0.00036164,30]
[425790316,1781891460000,-500.0,0.00036164,30]
[425790363,1781891460000,-491.5364727,0.00036164,30]
[425790362,1781891460000,-504.20587653,0.00036164,30]
[425790366,1781891460000,-500.0,0.00036164,30]
[425790394,1781891460000,-500.0,0.00036164,30]
[425790392,1781891460000,-548.78785367,0.00036164,30]
[425790400,1781891460000,-500.0,0.00036164,30]
[425790411,1781891460000,-500.0,0.00036164,30]
[425790403,1781891460000,-500.0,0.00036164,30]
[425790406,1781891460000,-1409.41,0.00036164,30]
[425790401,1781891460000,-500.0,0.00036164,30]
[425790408,1781891460000,-500.0,0.00036164,30]
[425790402,1781891460000,-588.02,0.00036164,30]
[425790404,1781891460000,-506.09789626,0.00036164,30]
[425790407,1781891460000,-511.1547515,0.00036164,30]
[425790405,1781891460000,-500.0,0.00036164,30]
[425790410,1781891460000,-509.53461117,0.00036164,30]
[425790390,1781891460000,-554.87172917,0.00036164,30]
[425790409,1781891460000,-500.0,0.00036164,30]
[425790413,1781891460000,-500.0,0.00036164,30]
[425790424,1781891460000,-529.41812596,0.00036164,30]
[425790414,1781891460000,-500.0,0.00036164,30]
[425790416,1781891460000,-509.70139423,0.00036164,30]
[425790415,1781891460000,-500.0,0.00036164,30]
[425790418,1781891460000,-500.0,0.00036164,30]
[425790373,1781891460000,-500.0,0.00036164,30]
[425790417,1781891460000,-518.27794794,0.00036164,30]
[425790420,1781891460000,-501.46,0.00036164,30]
[425790423,1781891460000,-500.0,0.00036164,30]
[425790422,1781891460000,-506.29811239,0.00036164,30]
[425790419,1781891460000,-500.0,0.00036164,30]
[425790425,1781891460000,-500.0,0.00036164,30]
[425790412,1781891460000,-500.0,0.00036164,30]
[425790393,1781891460000,-500.0,0.00036164,30]
[425790421,1781891460000,-500.0,0.00036164,30]
[425790389,1781891460000,-635.89,0.00036164,30]
[425790388,1781891460000,-500.0,0.00036164,30]
[425790368,1781891460000,-386.48815076,0.00036164,30]
[425790371,1781891460000,-515.78646004,0.00036164,30]
[425790367,1781891460000,-500.0,0.00036164,30]
[425790369,1781891460000,-515.39405822,0.00036164,30]
[425790370,1781891460000,-500.0,0.00036164,30]
[425790372,1781891460000,-564.53,0.00036164,30]
[425790374,1781891460000,-895.42,0.00036164,30]
[425790375,1781891460000,-500.0,0.00036164,30]
[425790377,1781891460000,-500.0,0.00036164,30]
[425790385,1781891460000,-510.01296696,0.00036164,30]
[425790376,1781891460000,-500.0,0.00036164,30]
[425790378,1781891460000,-500.0,0.00036164,30]
[425790365,1781891460000,-505.74872362,0.00036164,30]
[425790381,1781891460000,-500.0,0.00036164,30]
[425790382,1781891460000,-532.19,0.00036164,30]
[425790387,1781891460000,-500.0,0.00036164,30]
[425790398,1781891460000,-500.0,0.00036164,30]
[425790396,1781891460000,-457.02562112,0.00036164,30]
[425790397,1781891460000,-500.0,0.00036164,30]
[425790395,1781891460000,-500.0,0.00036164,30]
[425790391,1781891460000,-573.38,0.00036164,30]
[425790383,1781891460000,-500.0,0.00036164,2]
[425790379,1781891460000,-530.26000001,0.00036164,30]
[425790380,1781891460000,-513.84063036,0.00036164,30]
[425790386,1781891460000,-500.0,0.00036164,30]
[425790384,1781891460000,-511.69884695,0.00036164,30]
[425790399,1781891460000,-517.80160079,0.00036164,30]
[425790455,1781891461000,-500.0,0.00036164,30]
[425790452,1781891461000,-500.0,0.00036164,30]
[425790454,1781891461000,-500.0,0.00036164,30]
[425790456,1781891461000,-620.1247,0.00036164,30]
[425790461,1781891461000,-664.9,0.00036164,30]
[425790457,1781891461000,-563.96661421,0.00036164,30]
[425790458,1781891461000,-572.12818612,0.00036164,30]
[425790463,1781891461000,-500.0,0.00036164,30]
[425790459,1781891461000,-500.0,0.00036164,30]
[425790453,1781891461000,-500.0,0.00036164,30]
[425790475,1781891461000,-2187.7,0.00036164,30]
[425790460,1781891461000,-506.39001142,0.00036164,30]
[425790476,1781891461000,-568.16337119,0.00036164,30]
[425790465,1781891461000,-500.0,0.00036164,30]
[425790464,1781891461000,-500.0,0.00036164,30]
[425790468,1781891461000,-500.0,0.00036164,30]
[425790466,1781891461000,-508.37152598,0.00036164,30]
[425790467,1781891461000,-500.0,0.00036164,30]
[425790469,1781891461000,-500.0,0.00036164,30]
[425790471,1781891461000,-500.0,0.00036164,30]
[425790451,1781891461000,-523.91,0.00036164,30]
[425790462,1781891461000,-551.25,0.00036164,2]
[425790448,1781891461000,-507.04234707,0.00036164,30]
[425790431,1781891461000,-505.52963016,0.00036164,30]
[425790441,1781891461000,-500.0,0.00036164,30]
[425790470,1781891461000,-500.0,0.00036164,30]
[425790426,1781891461000,-598.25625973,0.00036164,30]
[425790428,1781891461000,-300.0,0.00036164,2]
[425790430,1781891461000,-1000.0,0.00036164,30]
[425790434,1781891461000,-500.0,0.00036164,30]
[425790433,1781891461000,-605.58173121,0.00036164,30]
[425790436,1781891461000,-500.0,0.00036164,30]
[425790429,1781891461000,-2627.54,0.00036164,30]
[425790437,1781891461000,-508.71646687,0.00036164,30]
[425790427,1781891461000,-513.21685896,0.00036164,30]
[425790447,1781891461000,-566.18486907,0.00036164,30]
[425790432,1781891461000,-511.1557578,0.00036164,30]
[425790439,1781891461000,-500.0,0.00036164,30]
[425790446,1781891461000,-500.0,0.00036164,30]
[425790438,1781891461000,-500.0,0.00036164,30]
[425790440,1781891461000,-500.0,0.00036164,16]
[425790443,1781891461000,-500.0,0.00036164,30]
[425790449,1781891461000,-500.0,0.00036164,30]
[425790450,1781891461000,-500.0,0.00036164,30]
[425790444,1781891461000,-500.0,0.00036164,30]
[425790445,1781891461000,-1580.35,0.00036164,30]
[425790442,1781891461000,-589.92948144,0.00036164,30]
[425790435,1781891461000,-475.94023409,0.00036164,30]
[425790474,1781891461000,-733.79,0.00036164,30]
[425790472,1781891461000,-575.90990897,0.00036164,30]
[425790473,1781891461000,-500.0,0.00036164,30]
[425790506,1781891461000,-500.0,0.00036219,30]
[425790508,1781891461000,-348.9825843,0.00036219,30]
[425790503,1781891461000,-500.0,0.00036219,30]
[425790502,1781891461000,-500.0,0.00036219,30]
[425790507,1781891461000,-500.0,0.00036219,30]
[425790505,1781891461000,-500.0,0.00036219,30]
[425790509,1781891461000,-500.0,0.00036219,30]
[425790511,1781891461000,-500.0,0.00036219,30]
[425790513,1781891461000,-500.0,0.00036219,30]
[425790512,1781891461000,-500.0,0.00036219,30]
[425790504,1781891461000,-500.0,0.00036219,30]
[425790510,1781891461000,-500.0,0.00036219,30]
[425790516,1781891461000,-500.0,0.00036219,30]
[425790518,1781891461000,-500.0,0.00036219,30]
[425790525,1781891461000,-381.28692489,0.00036219,30]
[425790517,1781891461000,-500.0,0.00036219,30]
[425790524,1781891461000,-500.0,0.00036219,30]
[425790519,1781891461000,-500.0,0.00036219,30]
[425790523,1781891461000,-500.0,0.00036219,30]
[425790520,1781891461000,-500.0,0.00036219,30]
[425790521,1781891461000,-519.84649738,0.00036219,30]
[425790522,1781891461000,-1241.22,0.00036219,30]
[425790515,1781891461000,-500.0,0.00036219,30]
[425790499,1781891461000,-29137.3378705,0.000362,30]
[425790514,1781891461000,-500.0,0.00036219,30]
[425790496,1781891461000,-513.80114072,0.00036164,30]
[425790495,1781891461000,-500.0,0.00036164,30]
[425790477,1781891461000,-500.0,0.00036164,30]
[425790478,1781891461000,-500.0,0.00036164,30]
[425790481,1781891461000,-500.0,0.00036164,30]
[425790488,1781891461000,-500.0,0.00036164,30]
[425790480,1781891461000,-500.0,0.00036164,30]
[425790484,1781891461000,-8617.71,0.00036164,30]
[425790486,1781891461000,-500.0,0.00036164,30]
[425790485,1781891461000,-508.29216073,0.00036164,30]
[425790483,1781891461000,-505.10905448,0.00036164,30]
[425790482,1781891461000,-521.67306068,0.00036164,30]
[425790479,1781891461000,-500.0,0.00036164,30]
[425790487,1781891461000,-505.45109295,0.00036164,30]
[425790490,1781891461000,-785.95,0.00036164,30]
[425790501,1781891461000,-500.0,0.00036219,30]
[425790493,1781891461000,-514.85891333,0.00036164,30]
[425790491,1781891461000,-500.0,0.00036164,30]
[425790489,1781891461000,-500.0,0.00036164,30]
[425790500,1781891461000,-1000.0,0.00036219,2]
[425790494,1781891461000,-517.0740521,0.00036164,30]
[425790492,1781891461000,-561.34,0.00036164,30]
[425790498,1781891461000,-150.0,0.00036169,120]
[425790497,1781891461000,-168.0,0.00036164,2]
[425790569,1781891462000,-500.0,0.00036219,30]
[425790563,1781891462000,-758.99,0.00036219,30]
[425790571,1781891462000,-500.0,0.00036219,30]
[425790565,1781891462000,-500.0,0.00036219,30]
[425790564,1781891462000,-711.97,0.00036219,30]
[425790555,1781891462000,-776.01,0.00036219,30]
[425790556,1781891462000,-500.0,0.00036219,30]
[425790559,1781891462000,-500.0,0.00036219,30]
[425790557,1781891462000,-500.0,0.00036219,30]
[425790560,1781891462000,-534.48830948,0.00036219,30]
[425790572,1781891462000,-500.0,0.00036219,30]
[425790558,1781891462000,-500.0,0.00036219,30]